Cogmind - Beta 11 X11 *** ADVENTURER MODE // 2022.02.28 @ 21:40:26 Player: Sardaukar Result: Destroyed by H-61 Shepherd with Heavy Assault Cannon Performance ------------- Evolutions (2) 1000 Regions Visited (4) 800 Robots Destroyed (21) 105 Value Destroyed (514) 514 Prototype IDs (0) 0 Alien Tech Used (0) 0 Bonus (0) 0 TOTAL SCORE: 2419 Bonus ------- None Cogmind --------- Core Integrity 0/550 Matter 300/300 Energy 100/100 System Corruption 0% Temperature Cool (0) Movement Core (50) Location -8/Materials Parts ------- > --- POWER (1) -------- (None) > --- PROPULSION (4) --- (None) > --- UTILITY (3) ------ (None) > --- WEAPON (3) ------- (None) > --- INVENTORY (5) ---- (None) Peak State ------------ > --- POWER ------------ (None) > --- PROPULSION ------- (None) > --- UTILITY ---------- Hardened Light Armor Plating Insulated Plating Insulated Plating > --- WEAPON ----------- Beam Rifle Beam Rifle High-powered Shotgun > --- INVENTORY -------- (None) [Rating: 15] Favorites ----------- Power Ion Engine Engine Ion Engine Power Core Light Nuclear Core Propulsion Aluminum Leg Treads Light Treads Leg Aluminum Leg Utility Hardened Light Armor Plating Device Trap Extractor Protection Hardened Light Armor Plating Weapon Assault Rifle Energy Gun Beam Rifle Ballistic Gun Assault Rifle Build | -11 -10 -9 -9 -8 ------- Run | Scr Mat Mat Min Mat Slots Evolved 4 | . . 2 . 2 Power . | . . . . . Propulsion 2 | . . 2 . . Utility 1 | . . . . 1 Weapon 1 | . . . . 1 Parts Attached 25 | 5 3 2 1 14 Power 3 | 1 1 . . 1 Engine 2 | 1 1 . . . Core 1 | . . . . 1 Reactor . | . . . . . Propulsion 6 | 2 1 2 . 1 Treads 2 | . . 2 . . Leg 4 | 2 1 . . 1 Wheel . | . . . . . Hover . | . . . . . Flight . | . . . . . Utility 6 | . . . . 6 Device 1 | . . . . 1 Storage . | . . . . . Processor . | . . . . . Hackware . | . . . . . Protection 5 | . . . . 5 Artifact . | . . . . . Weapon 10 | 2 1 . 1 6 Energy Gun 3 | . . . . 3 Energy Cannon . | . . . . . Ballistic Gun 7 | 2 1 . 1 3 Ballistic Cannon . | . . . . . Launcher . | . . . . . Special Weapon . | . . . . . Impact Weapon . | . . . . . Slashing Weapon . | . . . . . Piercing Weapon . | . . . . . Special Melee Weapon . | . . . . . Unidentified Prototypes . | . . . . . Parts Lost 18 | . . 2 6 10 Power 2 | . . 1 . 1 Propulsion 5 | . . . 4 1 Utility 3 | . . . . 3 Weapon 8 | . . 1 2 5 Highest Loss Streak 8 | . . 1 4 8 To Critical Strikes . | . . . . . Average Slot Usage (%) 45 | . 71 64 40 34 Engine 2 | . 14 3 . . Treads 6 | . . 22 18 . Leg 10 | . 28 22 13 . Protection 7 | . . . . 14 Energy Gun 5 | . . . . 10 Ballistic Gun 12 | . 28 16 8 7 Naked Turns 62 | . . . 29 33 Heaviest Build 22 | 9 9 9 2 22 Greatest Support 20 | 20 20 20 20 15 Greatest Overweight (x) 7 | . . . . 7 Average Overweight (x) 1 | . . . . 4 Largest Inventory Capacity 5 | 5 5 5 5 5 Average Capacity 5 | 5 5 5 5 5 Most Carried 2 | 2 2 1 . . Average Carried . | . 2 . . . Final Capacity 5 | 5 5 5 5 5 Final Carried 2 | 2 2 . . . Class Distribution -------------------- 89% | Mutant 10% | Tank Dominant Class ---------------- Mutant | -10/Materials Mutant | -9/Materials Mutant | -9/Mines Mutant | -8/Materials Resources | -11 -10 -9 -9 -8 ----------- Run | Scr Mat Mat Min Mat Matter Collected 578 | 230 18 10 124 196 Remotely . | . . . . . Salvage Created 770 | . 72 158 87 453 Parts 56 | . 13 15 9 19 Haulers Intercepted . | . . . . . Recyclers Shooed 4 | . . 2 . 2 Parts Field Recycled . | . . . . . Retrieved Matter . | . . . . . Parts Self-Destructed . | . . . . . Prevented . | . . . . . Kills | -11 -10 -9 -9 -8 ------- Run | Scr Mat Mat Min Mat Combat Hostiles Destroyed 14 | . 3 3 3 5 Guns 14 | . 3 3 3 5 Classes Destroyed 10 | . 2 2 1 5 Worker 1 | . . . . 1 Builder 1 | . . . . 1 Tunneler 1 | . . . 1 . Recycler 2 | . . . . 2 Watcher 2 | . 1 1 . . Swarmer 6 | . 3 . 3 . Grunt 3 | . . 1 . 2 Sentry 2 | . . 2 . . Specialist 2 | . . . . 2 Hunter 1 | . . . . 1 Best Kill Streak 3 | . 3 2 2 3 Combat Bots Only 3 | . 3 2 2 3 Max Kills in Single Turn 1 | . 1 1 1 1 Gunslinging . | . . . . . Exploded . | . . . . . Melee . | . . . . . Uniques/NPCs Destroyed . | . . . . . Combat | -11 -10 -9 -9 -8 -------- Run | Scr Mat Mat Min Mat Damage Taken 2754 | . 29 491 481 1753 Core 825 | . 7 52 177 589 Absorbed by Shields . | . . . . . Regen/Repaired (Parts) 72 | . . . . 72 Core Remaining (%) 79 | 100 97 . 42 . Volleys Fired 67 | . 6 15 13 33 Largest 2 | . 2 2 1 2 Hottest 93 | . 40 40 20 93 Shots Fired 94 | . 12 18 13 51 Gun 94 | . 12 18 13 51 Cannon . | . . . . . Launcher . | . . . . . Special . | . . . . . Kinetic 68 | . 12 18 13 25 Thermal 26 | . . . . 26 Explosive . | . . . . . Electromagnetic . | . . . . . Robot Hit Streak 15 | . 5 15 8 12 Robot Miss Streak 2 | . 1 1 1 2 Penetration Max 1 | . . . . 1 Secondary Targets 1 | . . . . 1 Max Gunslinging Chain 1 | . . . . 1 Shots Hit Robots 73 | . 8 17 11 37 Core Hits 43 | . 6 9 8 20 Critical Kills . | . . . . . Critical Parts Destroyed . | . . . . . Critical Strikes . | . . . . . Melee Attacks . | . . . . . Impact . | . . . . . Slashing . | . . . . . Piercing . | . . . . . Sneak Attacks . | . . . . . Combat Hostiles . | . . . . . Follow-up Attacks . | . . . . . Damage Inflicted 1243 | . 95 209 120 819 Guns 1161 | . 95 209 109 748 Cannons . | . . . . . Explosions . | . . . . . Melee . | . . . . . Ramming 82 | . . . 11 71 Kinetic 870 | . 95 209 109 457 Thermal 291 | . . . . 291 Explosive . | . . . . . Electromagnetic . | . . . . . Impact . | . . . . . Slashing . | . . . . . Piercing . | . . . . . Highest Corruption . | . . . . . Average Corruption . | . . . . . Corruption Purged . | . . . . . Corruption Blocked . | . . . . . Overload Shots . | . . . . . Overflow Damage . | . . . . . Projectiles . | . . . . . Explosions . | . . . . . Melee . | . . . . . Knockbacks . | . . . . . Impact . | . . . . . Kinetic . | . . . . . Secondary . | . . . . . Self-Inflicted Damage 30 | . . . . 30 Shots . | . . . . . Rammed 24 | . . . . 24 Targets Rammed 33 | . . . 9 24 Kicked 9 | . . . 9 . Crushed . | . . . . . Highest Temperature 234 | . . . . 234 Average Temperature 63 | . . . . 63 Received Heat Transfer 699 | . . 177 . 522 Siege Activations . | . . . . . Robots Corrupted . | . . . . . Combat Hostiles . | . . . . . Parts Fried . | . . . . . Impact Corruptions . | . . . . . Robots Melted . | . . . . . Combat Hostiles . | . . . . . Parts Melted 1 | . . . . 1 Heat Transferred 740 | . . . . 740 Parts Sabotaged . | . . . . . Parts Stolen . | . . . . . Parts Stripped . | . . . . . Power Chain Reactions . | . . . . . Missiles Intercepted . | . . . . . Alert | -11 -10 -9 -9 -8 ------- Run | Scr Mat Mat Min Mat Peak Influence 146 | . 137 146 102 114 Initial 49 | . . 49 47 20 Average 53 | . 100 85 69 27 Maximum Alert Level . | . . . . . Low Security (%) 100 | 100 100 100 100 100 Level 1 . | . . . . . Level 2 . | . . . . . Level 3 . | . . . . . Level 4 . | . . . . . Level 5 . | . . . . . High Security . | . . . . . Max Security . | . . . . . Squads Dispatched 4 | . 1 . . 3 Investigation 1 | . 1 . . . Extermination . | . . . . . Reinforcement 3 | . . . . 3 Assault . | . . . . . Garrison . | . . . . . Intercept . | . . . . . Searches Triggered . | . . . . . Construction Impeded . | . . . . . Haulers Reinforced . | . . . . . Active Scanning Responses . | . . . . . Cargo Convoy Interrupts . | . . . . . Stealth | -11 -10 -9 -9 -8 --------- Run | Scr Mat Mat Min Mat Distress Signals 2 | . 1 1 . . Communications Jammed . | . . . . . Distress Signals . | . . . . . Times Spotted 25 | . 6 4 5 10 Peak Tracking Total 5 | . 3 2 4 5 Tactical Retreats 5 | . 1 . 1 3 Traps | -11 -10 -9 -9 -8 ------- Run | Scr Mat Mat Min Mat Traps Triggered 2 | . 2 . . . Indirectly . | . . . . . Trap Hack Attempts . | . . . . . Triggered . | . . . . . Disarmed . | . . . . . Reprogrammed . | . . . . . Reused . | . . . . . Traps Extracted . | . . . . . Installed . | . . . . . Triggered . | . . . . . Machines | -11 -10 -9 -9 -8 ---------- Run | Scr Mat Mat Min Mat Machines Disabled . | . . . . . Max in Single Turn . | . . . . . Machines Sabotaged . | . . . . . Garrisons Compromised . | . . . . . Overloaded Fab Kills . | . . . . . Hacking | -11 -10 -9 -9 -8 --------- Run | Scr Mat Mat Min Mat Machines Accessed 1 | . . . . 1 Terminals . | . . . . . Fabricators . | . . . . . Repair Stations 1 | . . . . 1 Recycling Units . | . . . . . Scanalyzers . | . . . . . Garrison Access . | . . . . . Total Hacks 3 | . . . . 3 Successful 2 | . . . . 2 Failed 1 | . . . . 1 Catastrophic . | . . . . . Database Lockouts . | . . . . . Manual . | . . . . . Terminals . | . . . . . Fabricators . | . . . . . Repair Stations 3 | . . . . 3 Recycling Units . | . . . . . Scanalyzers . | . . . . . Garrison Access . | . . . . . Terminal Hacks . | . . . . . Fabricator Hacks . | . . . . . Repair Station Hacks 2 | . . . . 2 Scan Component 1 | . . . . 1 Repair 1 | . . . . 1 Recycling Unit Hacks . | . . . . . Scanalyzer . | . . . . . Garrison Access Hacks . | . . . . . Unauthorized Hacks . | . . . . . Terminals . | . . . . . Fabricators . | . . . . . Repair Stations . | . . . . . Recycling Units . | . . . . . Scanalyzers . | . . . . . Garrison Access . | . . . . . Data Cores Recovered . | . . . . . Used . | . . . . . Hacking Detections . | . . . . . Full Trace Events . | . . . . . Feedback Events . | . . . . . Feedback Blocked . | . . . . . Robot Schematics Acquired . | . . . . . Robots Built . | . . . . . Authchips . | . . . . . Time . | . . . . . Total Robot Build Rating . | . . . . . Part Schematics Acquired . | . . . . . Parts Built . | . . . . . Authchips . | . . . . . Time . | . . . . . Total Part Build Rating . | . . . . . Parts Repaired 1 | . . . . 1 Time 32 | . . . . 32 Parts Recycled . | . . . . . Recycled Matter . | . . . . . Retrieved Matter . | . . . . . Retrieved Components . | . . . . . Parts Scanalyzed . | . . . . . Part Schematics Acquired . | . . . . . Parts Damaged . | . . . . . Bothacking | -11 -10 -9 -9 -8 ------------ Run | Scr Mat Mat Min Mat Used RIF Installer . | . . . . . Robots Hacked . | . . . . . Non-combat . | . . . . . Combat . | . . . . . Robot Hacks Applied . | . . . . . Relay Couplers Released . | . . . . . Fabnet Peak Effective % . | . . . . . Robots Rewired . | . . . . . Allies Hacked . | . . . . . Hacks Repelled . | . . . . . Allies | -11 -10 -9 -9 -8 -------- Run | Scr Mat Mat Min Mat Total Allies . | . . . . . Largest Group . | . . . . . Highest-Rated Group . | . . . . . Highest-Rated Ally . | . . . . . Total Orders . | . . . . . Ally Attacks . | . . . . . Total Damage . | . . . . . Kills . | . . . . . Allies Corrupted . | . . . . . Allies Melted . | . . . . . Intel | -11 -10 -9 -9 -8 ------- Run | Scr Mat Mat Min Mat Robot Analysis Total . | . . . . . Derelict Logs Recovered 1 | . . . 1 . Drone Launches . | . . . . . Drone Recoveries . | . . . . . Exploration | -11 -10 -9 -9 -8 ------------- Run | Scr Mat Mat Min Mat Turns Passed 1335 | 61 208 170 250 646 Spaces Moved 715 | 46 155 113 214 187 Core 240 | 4 . . 62 174 Treads . | . . . . . Legs 475 | 42 155 113 152 13 Wheels . | . . . . . Hover . | . . . . . Flight . | . . . . . Fastest Speed 50 | 50 120 120 50 50 Average Speed 149 | 113 120 120 99 258 Slowest Speed 400 | 120 120 120 120 400 Overloaded Moves . | . . . . . Propulsion Burnouts . | . . . . . Robots Hopped . | . . . . . Cave-ins Triggered . | . . . . . Exploration Rate (%) 24 | 4 42 14 50 14 Regions Visited 4 Branch Regions 1 Pre-discovered Areas . | . . . . . Known Exits Taken . | . . . . . Unknown Exits Taken 4 | 1 1 1 1 . Scrap Searched . | . . . . . Spaces Dug . | . . . . . Terrain Destroyed . | . . . . . Melee . | . . . . . Projectile . | . . . . . AOE . | . . . . . Terrain Rammed . | . . . . . Walls Destroyed . | . . . . . Machines Disabled . | . . . . . Actions | -11 -10 -9 -9 -8 --------- Run | Scr Mat Mat Min Mat Total 873 | 52 163 129 236 293 Wait 33 | . . . . 33 Move 711 | 45 154 112 213 187 Hop . | . . . . . Pick Up 2 | 2 . . . . Fast Attach 23 | 5 3 . 1 14 Attach 2 | . . 2 . . Detach . | . . . . . Swap . | . . . . . Drop 2 | . . . . 2 Fire 67 | . 6 15 13 33 Melee . | . . . . . Ram 24 | . . . . 24 Kick 9 | . . . 9 . Crush . | . . . . . Escape Stasis . | . . . . . Rewire . | . . . . . Trap . | . . . . . Miscellaneous . | . . . . . Route ------- -11/Scrapyard -10/Materials (discovered 2 exits: [*Mat] / [*Min]) -9/Materials -9/Mines -8/Materials (discovered 1 exit: Fac) History --------- Turn | Location | Event 6 | -11/Scrapyard | Discovered new exit (range 16) 62 | -11/Scrapyard | Entered Materials 135 | -10/Materials | Discovered new exit (range 11) 252 | -10/Materials | Discovered new exit (range 16) 270 | -10/Materials | Entered another Materials area 270 | -9/Materials | Evolved 2 slots: Propulsion x2 311 | -9/Materials | Build established: Mutant 421 | -9/Materials | Discovered new exit (range 13) 440 | -9/Materials | Entered Mines 512 | -9/Mines | YI-UF0 nonchalantly dropped a Grenade Launcher on the ground 666 | -9/Mines | Core integrity fell below 50% 685 | -9/Mines | Discovered new exit (range 10) 690 | -9/Mines | Entered Materials 690 | -8/Materials | Evolved 2 slots: Utility x1, Weapon x1 691 | -8/Materials | Identified exit to Factory 692 | -8/Materials | Lost 4 parts (3n1w) 1078 | -8/Materials | Repaired Hrd. Light Armor Plating 1279 | -8/Materials | Core integrity fell below 50% 1317 | -8/Materials | Core integrity fell below 20% 1336 | -8/Materials | Destroyed by H-61 Shepherd with Heavy Assault Cannon Last Messages --------------- 01311_ Acquired 9 matter. 01311_ Slammed into H-61 Shepherd. 01321_ Knocked back. 01322_ Slammed into H-61 Shepherd. 01324_ K-01 Serf collects debris. 01324_ Slammed into H-61 Shepherd. 01327_ K-01 Serf collects debris. 01327_ Slammed into H-61 Shepherd. 01328_ H-61 Shepherd calls for reinforcements. 01328_ ALERT: Suspicious intruders detected, dispatching Cutter reinforcements to area. 01329_ Slammed into H-61 Shepherd. 01329_ U-05 Engineer builds a Wall. 01330_ Slammed into H-61 Shepherd. 01330_ K-01 Serf collects debris. 01331_ Slammed into H-61 Shepherd. 01334_ U-05 Engineer builds a Wall. 01334_ K-01 Serf collects debris. 01335_ Slammed into H-61 Shepherd. 01336_ Penetrated by Slug. Map ----- +----------------------------------------------------+ | ??????# """ + ## # # """ #????????????? | | ??????# """ # ######### # """ #????????????? | | ??????# """ # #????#### # """ #????????????? | | ??????# ?#*#?? # # #????????????? | | ??????######?#%# """ # ##########????????????? | | ?????????????#=+ """ # #?????????????????????? | | ?????????????# # """ # #?????????????????????? | | ?????????????# #?? # #?????????????????????? | | ?????????????# ######### #?????????????????????? | | ?????????????# ## !! # #?????????????????????? | | ?????????????# ## !! # #?????????????????????? | | ?????????????# ## + #?????????????????????? | | ?????????????# ## # #?????????????????????? | | ?????????????# ## #% #?????????????????????? | | ??##########?# ## ! # %%#??????#??????????????? | | ??# #?# ######### %#???? #??????????????? | | ??#""" #?# #???????#% #?? #??????????????? | | ??#""" ! ### ###?????# # """ #??????????????? | | ??#""" # ####### + """ #??????????????? | | ??# # % # """ [#??????????????? | | ??#""" + T # #??????????????? | | ??#""" | # [ %!!########??????????????? | | ??#""" !# #######g%%#?????????????????????? | | ??# #######?????#%=%#?????????????????????? | | ??##########???????????#%%!#?????????????????????? | | ???????????????????????#%@=#?????????????????????? | | ???????????????????????#%H%#?????????????????????? | | ???????????????????????#%%%#?????????????????????? | | ??????????????????????##k%%##????????????????????? | | ???????????????##+#####%%%%%#????????????????????? | | ???????????????# %%%%%#????????????????????? | | ?????????? %%u##???????????????????? | | ???????????##### u u##???????????????????? | | ???????????????# ### k ???????????????????? | | ???????????????# ######u####??????????????????? | | ???????????????# ?????? ?????????????????????? | | ?????????????? ??????? ?????????????????????? | | ?????????????! ???????? ????????????????????? | | ?????????????= ????????? ????????????????????? | | ?????????????= ??????????####????????????????????? | | ?????????????????????????????????????????????????? | | ?????????????????????????????????????????????????? | | ?????????????????????????????????????????????????? | | ?????????????????????????????????????????????????? | | ?????????????????????????????????????????????????? | | ?????????????????????????????????????????????????? | | ?????????????????????????????????????????????????? | | ?????????????????????????????????????????????????? | | ?????????????????????????????????????????????????? | | ?????????????????????????????????????????????????? | +----------------------------------------------------+ Best States ------------- Heat Dissipation 31 Energy Generation 10 Energy Capacity 250 Matter Stores 300 Matter Capacity 300 Sight Range 16 Terrain Scan Density 10 Armor Coverage 450 Resistance: KI 20 Resistance: TH 20 Resistance: EX 20 Resistance: EM 35 Resistance: I 20 Resistance: S 20 Resistance: P 20 Evasion (%) 55 Offensive Hacking 10 Trap Extractor Capacity 4 Item Schematics ----------------- None Robot Schematics ------------------ None Fabricated ------------ Nothing Alien Tech Used ----------------- None Achievements -------------- None Challenges ------------ None Game ------ Seed EnhancedLargeSlayer Manual? 0 Play Time 00:21:24 Cumulative 175.8 hours Start 2022.02.28 @ 21:09:07 End 2022.02.28 @ 21:40:26 Sessions 1 Manual Loads 0 Difficulty Adventurer Special Mode None Game No. 39 Rogue 0 Adventurer 33 Explorer 6 Win Type - Total 3 Types 2/0/1/0/0/0/0/0/0 Lore% 51 Gallery% 64 Achievement% 46 Wizard Run 0 Options --------- ASCII 0 Keyboard 0 Movement Mouse Keybinds 0 Fullscreen 2 Font 20/Terminus Map View 66x50 Tactical HUD 1 Map Filters NONE Filters NONE Steam 1 RUN: c4370aba-a2d9-44d9-b375-e412aee0e398